[Event "Sinquefield Cup 3rd"]
[Site "Saint Louis"]
[Date "2015.08.28"]
[Round "6"]
[White "Vachier Lagrave, Maxime"]
[Black "Topalov, Veselin"]
[Result "1-0"]
[ECO "C67"]
[WhiteElo "2731"]
[BlackElo "2816"]
[Annotator "Marin,M"]
[PlyCount "73"]
[EventDate "2015.08.23"]
[EventType "tourn"]
[EventRounds "9"]
[EventCountry "USA"]
[EventCategory "22"]
[SourceTitle "CBM 168"]
[Source "ChessBase"]
[SourceDate "2015.09.14"]
[SourceVersion "1"]
[SourceVersionDate "2015.09.14"]
[SourceQuality "1"]
[TimeControl "40/7200:3600+30"]

1. e4 {[%emt 0:00:04]} e5 {[%emt 0:00:10]} 2. Nf3 {[%emt 0:00:04]} Nc6 {
[%emt 0:00:05]} 3. Bb5 {[%emt 0:00:04]} Nf6 {[%emt 0:00:10]} 4. O-O {[%emt 0:
00:20]} Nxe4 {[%emt 0:00:27]} 5. d4 {[%emt 0:00:06]} Nd6 {[%emt 0:00:05]} 6.
Bxc6 {[%emt 0:00:09]} dxc6 {[%emt 0:00:10]} 7. dxe5 {[%emt 0:00:03]} Nf5 {
[%emt 0:00:06]} 8. Qxd8+ {[%emt 0:00:05]} Kxd8 {[%emt 0:00:06];Polgar,J (2735)
-Topalov,V (2788) FIDE-Wch San Luis 2005 (6) 0-1 Even though Topalov's
trademark opening is the Najdorf Sicilian, the Berlin defence, a "discovery"
of his former World title rival, occupies a solid place in his repertoire. He
has used it twice on his way to the supreme title in San Luis 2010. He scored
an important win in the early rounds in} {and a safe draw to secure his first
place in the penultimate round in} 9. h3 {[%emt 0:02:24];Kasimdzhanov,R (2670)
-Topalov,V (2788) FIDE-Wch San Luis 2005 (13) 1/2} h6 {[%emt 0:02:44]} 10. Rd1+
{[%emt 0:02:42]} Ke8 {[%emt 0:00:14]} 11. Nc3 {[%emt 0:00:08]} Ne7 {[%emt 0:01:
33] The paradox of this opening is that with the exception of his knight Black
is even worse than completely undeveloped, since he has lost the right to
castle in the meanwhile. What makes things even more weird is that he can keep
moving around with the same knight which has consumed four tempi over the
first eight moves! Quite naturally, developing moves have also been tried here.
} (11... Bd7 12. Bf4 Rd8 {Caruana,F (2783)-Carlsen,M (2881) Shamkir 2014 CBM
160 [Caruana,F] (1-0, 53)}) (11... Be7 {was the choice of a Berlin
non-specialist, even though one of the greatest players ever!} 12. Ne2 Nh4 13.
Nxh4 Bxh4 14. Be3 Bf5 15. Nd4 Bh7 16. g4 Be7 17. Kg2 h5 18. Nf5 Bf8 19. Kf3 {
Polgar,J (2681)-Kasparov,G (2838) Moscow (Russia vs World, rapid) 2002 CBM 091
[Wedberg] (1-0, 42)}) ({In view of the permanent danger of a pawn break in the
centre,} 11... Be6 {looks as a solid option. The only problem is that Black
has to give up the bishops' pair soon.} 12. g4 Ne7 13. Nd4 Rd8 14. Bf4 ({
The prophilactic} 14. Kg2 $5 {might have been better. By evacuasting the back
rank White threatens Nxe6, in order to meet ...Rxd1? (without check) with
Nxc7+, winning a pawn.} Bc8 15. Bf4 {This looks like a more active version of
the game continuation.}) 14... Nd5 $1 15. Nxe6 fxe6 16. Ne2 b5 ({Black could
have ignored the threat c2-c4, weakening the d4- and d3 squares with} 16... Kf7
{for instance} 17. c4 Nxf4 18. Nxf4 Bc5 $132) 17. b3 (17. Bg3 $5) 17... Bc5 (
17... Kf7 $5) 18. c4 bxc4 19. bxc4 Nb6 20. Rxd8+ Kxd8 21. h4 Ke7 22. g5 {
In Ni,H (2703)-Sasikiran,K (2640) Danzhou 2015 (1-0, 48) Black should have met
White's original pawn break with} Rf8 23. Kg2 Rf5 {[%csl Gc4,Gf2]}) 12. Nd4 {
[%emt 0:06:18] Deviating from two recent games of the main Berlin player
Caruana.} (12. Bf4 Ng6 13. Bh2 Be7 14. Nd4 Nf8 15. Rd3 h5 16. Re1 Ne6 {allowed
Black a safe regrouping in Caruana,F (2803)-Dominguez Perez,L (2734)
Khanty-Mansiysk 2015 CBM 167 [Marin,M] (½-½, 40)}) (12. b3 Bf5 13. Nd4 Bh7
14. Bb2 {Caruana,F (2805)-Carlsen,M (2876) Stavanger 2015 CBM 167 [Wagner,D] 
(1-0, 45)}) 12... Ng6 {[%emt 0:10:19] It is essential to clear the e7-square
for the king for reasons which will be revealed in the lines below.} (12... a6
{is clumsily preparing the losing ...c6-c5.} 13. a3 {This does not make much
sense, it only invited Black to take the byte.} (13. Ne4 $14 {would be a more
useufl way of preventing ...c5.}) 13... c5 $2 (13... Ng6 14. f4 {would lead to
similar play as in the game.}) 14. Ndb5 $1 axb5 15. Nxb5 {In view of the
threat Nxc7 mate Black loses material. Now is when the unavailibility of the
e7-square is relevant.} Nd5 16. Rxd5 c6 17. Nd6+ Kd7 18. Rd3 $18 {Bobras,P 
(2576)-Korneev,O (2651) La Laguna 2008 (½-½, 57)}) ({And a neutral move like
} 12... h5 $2 {would allow the same trick:} 13. Ndb5 $1 $18) 13. f4 {[%emt 0:
02:36]} ({With the e7-square free, the combination} 13. Ndb5 $6 {does not
really work:} cxb5 14. Nxb5 Rb8 15. Nxc7+ Ke7 16. b3 Bd7 17. Ba3+ Kd8 18. e6 {
Coleman,M (2201)-Parry,M (2292) Cherry Hill 2007 (1-0, 55)} Kxc7 19. Rxd7+ Kc6
$15 {White does not have enough compensation for the knight. Due to his
hanging bishop, he has no time to play Rxf7, which would change the situation
quite a lot.}) 13... Bc5 {[%emt 0:00:17] Planning the exchange on d4 in order
to increase Black's control over the e6- and f5-squares. But this will allow
White achieve a very active position, while the g6-knight is not of much use
for the blockade anyway. Unless Black intends to spend two more tempi with it
to return to f5.} ({If} 13... a6 14. Be3 c5 $2 {White already has an
alternative to the familiar combination:} 15. Nd5 $1 Kd7 16. Nb3 Kc6 17. Na5+)
(13... f6 {was a worthy alternative to the game move, aiming to neutralize
White's space advantage.} 14. exf6 (14. e6 Bc5 15. f5 Nh4 {leaves the pawns
hanging.}) 14... gxf6 {Black plans ...Kf7, ...h5-h4 and if} 15. f5 Nh4 16. g4
h5 {he has reasonable counterplay.}) 14. Be3 {[%emt 0:04:02]} h5 {[%emt 0:01:
12]} 15. Ne4 {[%emt 0:11:13]} Bxd4 {[%emt 0:00:07]} (15... Bb6 {would more or
less force Black take on d4 anyway after} 16. c4) (15... Be7 {is just a loss
of time, allowing White to slowly increase the pressure with} 16. Rd2 $14) 16.
Rxd4 {[%emt 0:00:04]} h4 {[%emt 0:03:44]} 17. Rad1 {[%emt 0:10:01] If Black
could regroup with ...Ne7-f5 followed by ...Be6 he would achieve a dream
position, with perfect blockade on light squares. But he does not have the
time for pursuing such dreams due to the threat 18.Rd8+ Ke7 19.Bc5+} Bf5 {
[%emt 0:00:44]} (17... Be6 {runs into} 18. Nc5 b6 19. Nxe6 fxe6 20. Rd7 {
when the tricky} Ne7 {fails o equalize:} 21. Rxc7 Nd5 22. Rxd5 cxd5 23. Rxg7 {
with two pawns for the exchange and a very active position.}) 18. e6 {[%emt 0:
01:57] So far, both players had spent some time on several moves, but White
played his last move after less than two minutes. This type of pawn break is
thematic and when it works it can cause Black some trouble.} Bxe6 $6 {[%emt 0:
29:40] Topalov was visibly surprized by the last move, as he answered after
half an hour. He was possibly living under the illusion that the light suqars
are all "his". But the last move does not solve Black's problems completely.} (
{True} 18... Bxe4 $6 {is not entirely satisfactory either:} 19. Rxe4 ({The
hurried} 19. exf7+ {only speeds up Black's development:} Kxf7 20. Rxe4 Rad8 21.
Rxd8 Rxd8 22. f5 Rd1+ 23. Kf2 Ne7 $11 {[%csl Gf5,Gh4]}) 19... f5 (19... fxe6 $2
20. f5 Nf8 21. fxe6 $18) 20. Rb4 b6 21. Rd7 $36) ({But} 18... fxe6 {is not at
all easy to refute, even though White's compensation is beyond any doubt.} 19.
Ng5 {[%cal Gd4d7]} Ne7 20. c4 (20. Rd7 Nd5) 20... c5 21. R4d2 (21. Rd7 Nd5 22.
Rxg7 Nxe3 23. Rdd7 {leads only to a draw by perpetual.}) 21... b6 $44 {White's
position is more active, but Black is solid and has an extra pawn. The game is
rather one-sided (Black cannot generate counterplay too easily) but it is not
obvious how could White break the black fortress.}) 19. Nc5 {[%emt 0:01:44]}
Rh5 $146 {[%emt 0:09:01] Most probably, an over-the-board novelty.} (19... b6
20. Nxe6 fxe6 21. Rd7 $16 {Saric,I (2609)-Sulava,N (2565) Marija Bistrica 2011
(1-0, 33)}) (19... Bc8 {is too passive to be good:} 20. Re4+ $1 Ne7 21. Bd4 {
[%cal Gd1e1,Gd4g7]} f5 22. Re2 Kf7 23. Bxg7 $16) 20. Nxb7 {[%emt 0:07:34]
Black has chronical weaknesses on the queenside, but Topalov had thought up a
way to mend the pawns.} Rd5 $6 {[%emt 0:05:13] This will eventually rid Black
of his double pawns, but not of the weak c5-square.} (20... Rb5 $5 21. Nd8 $8
Rxb2 22. Nxc6 {Threatening Rd8+ followed by mate.} f5 {[%csl Ge5,Gg5]} ({
The strategically more desirable} 22... f6 $2 {fails tacctically to} 23. Re4
Kf7 24. Nd8+) 23. R4d3 Rxa2 24. Nd4 Bd7 25. Rc3 c6 26. Nf3 $44 {White surely
has the initiative due to the weakness of the dark squares and the presence of
opposite-coloured bishops, but Black is not without counterchances.}) 21. b3 {
[%emt 0:08:26]} Rb8 {[%emt 0:05:18]} 22. Rxd5 {[%emt 0:00:10]} cxd5 {[%emt 0:
00:19]} 23. Nc5 {[%emt 0:00:05]} c6 {[%emt 0:02:07]} 24. Rd4 {[%emt 0:03:22]
White has a perfect blockade and threatens to win the a7-pawn.} Bc8 {[%emt 0:
07:59] This looks a bit passive.} ({True, Black had to remove the bishop from
e6, for instance:} 24... Ne7 $2 25. Ra4 Ra8 26. Nxe6 fxe6 27. Rxa7 $18) ({But} 
24... Bf5 {looks a bit more active even though} 25. c4 {may be similar to the
game.}) 25. Ra4 {[%emt 0:01:06]} Ra8 {[%emt 0:00:12]} 26. c4 {[%emt 0:07:57]}
dxc4 $6 {[%emt 0:04:17] A heavy positional concession.} (26... Ne7 27. cxd5
cxd5 $14 {[%cal Ge7f5] would still have been playable for Black. In fact, the
knight manoeuvre gives meaning to the bishop retreat to c8 rather than f5.})
27. Rxc4 $16 {[%emt 0:01:47]} Bf5 {[%emt 0:01:33]} ({Even now} 27... Ne7 {
made some sense.}) 28. Nb7 {[%emt 0:01:04] Sudenly, White switches to the
attacking mode.} Kd7 {[%emt 0:02:28]} 29. Rd4+ {[%emt 0:02:22]} Kc7 {[%emt 0:
03:11]} 30. Nd6 {[%emt 0:00:40]} Bb1 {[%emt 0:00:52]} (30... Be6 31. f5 Bd5 32.
Nb5+ (32. Nxf7 $5) 32... cxb5 33. Rxd5 Ne7 34. Rxb5 $18) 31. Nxf7 {[%emt 0:05:
57]} Re8 {[%emt 0:07:42]} (31... Bxa2 32. f5 Nf8 33. Rb4 {[%csl Ra2][%cal
Ge3f4] threatens the devastating Bf4+ while leaving the a2-bishop in off-side.}
) 32. Kf2 {[%emt 0:01:13]} Bxa2 $2 {[%emt 0:05:42] Giving away the control of
the f5-square makes things simpler for White.} (32... a6 {, removing the pawn
from the e3-bishop's range would have offered some hopes still.} 33. Ra4 Re4
34. Rxe4 (34. Rxa6 Nxf4 {offers some shadow of counterplay.}) 34... Bxe4 35.
Ng5 Bb1 36. a3 Kd6 37. b4 Kd5 {and a win is not obvious for White yet.}) 33. f5
$18 {[%emt 0:02:14]} Nf8 {[%emt 0:00:09]} 34. Ra4 {[%emt 0:05:37]} Bxb3 {
[%emt 0:00:05]} 35. Rxa7+ {[%emt 0:00:06]} Kb8 {[%emt 0:00:17]} 36. Nd6 {
[%emt 0:00:09]} Rd8 {[%emt 0:00:07]} 37. Rxg7 {[%emt 0:01:52][%cal Ge3g5,Gg5h4]
} (37. Rxg7 Rxd6 38. Bf4) 1-0

[Event "CHN-chT"]
[Site "China"]
[Date "2015.07.27"]
[Round "11.21"]
[White "Wan, Yunguo"]
[Black "Wang, Hao"]
[Result "1-0"]
[ECO "C67"]
[WhiteElo "2477"]
[BlackElo "2713"]
[Annotator "Primel,D"]
[PlyCount "53"]
[EventDate "2015.04.10"]
[EventType "team-match"]
[EventRounds "22"]
[EventCountry "CHN"]
[SourceTitle "EXT 2019"]
[Source "ChessBase"]
[SourceDate "2018.10.10"]
[SourceVersion "1"]
[SourceVersionDate "2018.10.10"]
[SourceQuality "1"]
[WhiteTeam "Heibei"]
[BlackTeam "Beijing"]
[WhiteTeamCountry "CHN"]
[BlackTeamCountry "CHN"]
[TimeControl "5400+30"]

1. e4 e5 2. Nf3 Nc6 3. Bb5 Nf6 {Le Top GMI veut jouer une partie technique
mais la cadence rapide est un peu incompatible avec les longues manoeuvres du
mur de Berlin} 4. O-O Nxe4 5. Re1 $5 {Cette variante a connu un regain de
popularité depuis quelques années.} (5. d4 {La grande ligne}) 5... Nd6 6.
Nxe5 Be7 7. Bf1 (7. Bd3 $5) 7... O-O (7... Nxe5 8. Rxe5 O-O 9. Nc3 Bf6 10. Re1
Re8 11. Nd5 Rxe1 12. Nxf6+ Qxf6 13. Qxe1 b6 14. d3 Bb7 15. Qb4 Re8 16. Qf4 Qg6
17. Bd2 h6 18. b4 c5 19. bxc5 bxc5 20. Be3 Rc8 21. Rb1 Qe6 22. c4 g5 23. Qg3
Nf5 24. Qg4 Nxe3 25. Qxe6 dxe6 26. Rxb7 Nf5 27. Rxa7 g4 28. h3 h5 29. hxg4 hxg4
30. Be2 Nh6 31. Ra5 Kg7 32. a4 Kf6 33. Rb5 Ke5 34. a5 Kd4 35. a6 Ra8 36. Ra5
Ra7 37. Kh2 {Giri,A (2768)-Anand,V (2793) London 2014 1/2-1/2}) (7... Nf5 8.
Nf3 O-O 9. d4 d5 10. c3 Bd6 $132) 8. d4 Nf5 9. d5 (9. Nf3 d5 10. c3) 9... Nxe5
10. Rxe5 d6 11. Re1 Re8 $146 {Un coup naturel mais un peu passif} (11... Bf6
12. Nd2 Nh4 {Anand,V (2804)-McShane,L (2645) London Classic 2nd 2010 (5) 1/2} (
12... Bg5 13. Ne4 Bxc1 14. Rxc1 $32)) 12. Nc3 Nh4 (12... Bf6 13. Ne4) 13. Ne4
$1 {Empêche Bf6 ou Bg5} Bd7 (13... Bf8 14. Bg5 (14. Qh5 {[%csl Rf7,Rh4,Rh7]
[%cal Ge4g5,Gc1g5]}) 14... Be7 15. Qh5 Bxg5 16. Nxg5 $18 {[%csl Rf7,Rh4,Rh7]})
14. Qh5 $14 g6 15. Qh6 Bf8 16. Qg5 $1 {[%csl Rh4][%cal Ge4f6]} Kg7 {Le signe
que la position Noire n'est pas trés saine} (16... Bg7 17. Qxd8 Raxd8 18. Bg5
{[%csl Rh4]}) 17. Qg3 $36 {[%csl Rh4][%cal Gc1g5]} Nf5 $2 (17... h6 {Un
moindre mal}) 18. Qc3+ $1 {Comme souvent le couple N+Q est redoutable dans
l'attaque du K adverse} Kg8 19. Bg5 $40 {[%csl Rf6,Rg8,Rh6][%cal Ge4f6]} Bg7
20. Nf6+ Kh8 21. Nxe8 $1 Bxc3 22. Bxd8 Rxd8 23. Nxd6 $1 {[%cal Gd6f7] La
pointe car la menace Nf7 regagne la qualité} cxd6 24. bxc3 Kg7 (24... Rc8 25.
c4 Nd4 26. Rac1 Bf5 27. Bd3) 25. Reb1 b6 26. a4 Rc8 27. c4 1-0

[Event "Sautron op 13th"]
[Site "Sautron"]
[Date "2013.10.27"]
[Round "2"]
[White "Migot, Tangi"]
[Black "Le Roux, Jean Pierre"]
[Result "1/2-1/2"]
[ECO "C67"]
[WhiteElo "2354"]
[BlackElo "2571"]
[Annotator "RR"]
[PlyCount "86"]
[EventDate "2013.10.26"]
[EventType "swiss"]
[EventRounds "9"]
[EventCountry "FRA"]
[SourceTitle "EXT 2016"]
[Source "ChessBase"]
[SourceDate "2015.10.08"]
[SourceVersion "1"]
[SourceVersionDate "2015.10.08"]
[SourceQuality "1"]
[TimeControl "40/5400+30:1800+30"]
[WhiteClock "1:30:00"]
[BlackClock "1:30:00"]

1. e4 {[%emt 0:00:00]} e5 {[%emt 0:03:34]} 2. Nf3 {[%emt 0:00:00]} Nc6 {
[%emt 0:00:25]} 3. Bb5 {[%emt 0:00:18]} Nf6 {[%emt 0:01:37]} 4. O-O {[%emt 0:
02:20]} Nxe4 {[%emt 0:00:44]} 5. Re1 {[%emt 0:00:18]} (5. d4 Nd6 6. Bxc6 bxc6 (
6... dxc6 7. dxe5 Nf5 8. Qxd8+ Kxd8 9. h3 (9. Nc3 Ke8 10. Bf4 Be6 11. Rfd1 h6
12. h3 Be7 13. g4 $1 Nh4 14. Nxh4 Bxh4 15. Kg2 Be7 16. f3 Rd8 17. Ne2 $14 {
[%cal Ge2g3,Gg3f5,Gg3h5];Naiditsch,A (2715)-Wagner,D (2499) Grenke Chess
Classic 2nd 2014 (6) 1-0}) 9... Bd7 10. Rd1 Be7 11. Nc3 Kc8 12. Bg5 h6 13. Bxe7
Nxe7 14. Rd2 c5 15. Rad1 Be6 16. Ne1 Ng6 17. Nd3 b6 18. Ne2 Bxa2 19. b3 c4 20.
Ndc1 cxb3 21. cxb3 Bb1 22. f4 Kb7 23. Nc3 Bf5 24. g4 Bc8 25. Nd3 h5 {Anand,V 
(2775)-Carlsen,M (2870) World Championship 2013 (4) 1/2} (25... Ne7 $142 26. f5
Nc6 {Anand})) 7. dxe5 Nb7 8. Qe2 Be7 9. c4 O-O 10. Nc3 f6 11. Re1 fxe5 12. Qxe5
Bf6 13. Qg3 Nd6 14. c5 {Stellwagen,D (2635)-Erdos,V (2576) Bundesliga 1011
2010 (9.3) 1/2} (14. Bf4 Nf5 {Erdos})) 5... Nd6 {[%emt 0:00:47]} 6. Nxe5 {
[%emt 0:00:42]} Be7 {[%emt 0:00:18] La variante de Rio de Janeiro} 7. Bf1 {
[%emt 0:00:47]} (7. Bd3 $5) 7... Nxe5 {[%emt 0:02:16]} (7... Nf5 {[%csl Gd4]}
8. c3 Nxe5 9. Rxe5 d6 10. Re1 O-O 11. d4 d5 12. Bf4 Bd6 13. Qf3 Nh4 14. Qg3 Nf5
$11 {Mastrovasilis,D (2604)-Hammer,J (2610) GRE-chT 39th 2011 (7.4) 1/2}) 8.
Rxe5 {[%emt 0:00:07]} O-O {[%emt 0:00:03]} 9. Nc3 {[%emt 0:00:53]} Bf6 {
[%emt 0:02:26]} (9... Ne8 10. Nd5 Bd6 11. Re1 c6 12. Ne3 Bc7 13. Nf5 d5 14.
Ne7+ Kh8 15. Nxc8 Rxc8 16. g3 Nd6 17. Bh3 f5 18. d3 Qf6 19. c3 Rce8 20. Bd2 Nf7
21. Rxe8 Rxe8 22. Qf1 f4 23. Re1 Rf8 24. Qe2 h6 25. Kh1 Ng5 26. Bg4 Bd6 27. h4
Nh7 28. Kg2 Qg6 29. Bh5 Qf5 30. Bg4 Qg6 31. Bh5 Qf5 32. Bg4 Qg6 {1/2-1/2 (32)
Nakamura,H (2772)-Carlsen,M (2862) Saint Louis 2013}) 10. Re1 {[%emt 0:02:23]}
Re8 {[%emt 0:01:02]} 11. Nd5 {[%emt 0:10:14]} Rxe1 {[%emt 0:03:01]} 12. Qxe1 {
[%emt 0:00:05]} b6 {[%emt 0:00:07]} 13. g3 {[%emt 0:10:43]} Bb7 {[%emt 0:00:13]
} 14. Bg2 {[%emt 0:00:24]} Bxd5 $5 $146 {[%emt 0:00:56]} (14... c6 15. Ne3 Qe7
16. d3 Nf5 17. c3 d5 18. Bd2 Nxe3 19. Qxe3 Qxe3 20. Bxe3 Ba6 21. d4 Re8 22. a4
h6 23. h4 Bc8 24. b4 Bf5 25. a5 b5 26. Re1 g5 27. hxg5 hxg5 28. f3 Bd8 29. Kf2
Bc7 30. Bd2 Rxe1 31. Bxe1 f6 32. Bd2 Kg7 33. Bf1 a6 34. Be2 Kf7 35. Be3 Kg7 36.
Bd2 Kf7 37. Be3 Kg7 38. Bd2 Kf7 {1/2-1/2 (38) Adams,M (2710)-Kramnik,V (2795)
London 2012}) 15. Bxd5 {[%emt 0:00:08]} c6 $11 {[%emt 0:00:10]} 16. Bg2 {
[%emt 0:02:36]} Qf8 {[%emt 0:00:32][%cal Ga8e8]} 17. c3 {[%emt 0:07:28]} Re8
$32 {[%emt 0:11:00][%csl Ra1,Rc1,Re1]} 18. Qf1 {[%emt 0:02:45]} Qe7 {[%emt 0:
12:54]} 19. d3 {[%emt 0:05:39]} Bg5 {[%emt 0:13:38]} 20. f4 {[%emt 0:05:50]}
Bf6 {[%emt 0:00:08]} 21. Bd2 {[%emt 0:00:20]} Nb7 {[%emt 0:08:08]} (21... Qe2
22. Qxe2 Rxe2 23. Rd1 $132 {[%csl Rb2,Ge2]}) 22. Re1 {[%emt 0:06:49]} Qd8 {
[%emt 0:01:51]} 23. Bf3 {[%emt 0:05:35]} Rxe1 {[%emt 0:07:30]} 24. Bxe1 {
[%emt 0:01:34]} d5 {[%emt 0:02:12]} 25. Qe2 {[%emt 0:04:52]} Nd6 {[%emt 0:05:
40]} (25... Kf8) 26. Bf2 {[%emt 0:01:51]} g6 {[%emt 0:01:30]} 27. Qc2 {[%emt 0:
09:35]} h5 {[%emt 0:09:23]} 28. Kg2 {[%emt 0:01:51]} Kg7 {[%emt 0:02:13]} 29.
h3 {[%emt 0:01:14]} Nf5 {[%emt 0:03:08]} 30. Qe2 {[%emt 0:07:06]} Qd6 {[%emt 0:
02:23]} (30... Qe7) 31. g4 {[%emt 0:04:20]} hxg4 {[%emt 0:01:47]} 32. hxg4 {
[%emt 0:00:05]} Nh4+ {[%emt 0:00:30]} 33. Bxh4 {[%emt 0:00:39]} Bxh4 {[%emt 0:
00:05]} 34. Qe5+ {[%emt 0:01:07] Après l'échange des Q, le GMI aura du mal
à jouer pour le gain} Qxe5 {[%emt 0:00:42]} 35. fxe5 {[%emt 0:00:04]} Bg5 {
[%emt 0:02:38]} 36. c4 {[%emt 0:01:14]} dxc4 {[%emt 0:00:30]} 37. dxc4 {
[%emt 0:00:04]} Bc1 {[%emt 0:00:17]} 38. b3 {[%emt 0:00:32]} c5 {[%emt 0:00:32]
} 39. Bd5 {[%emt 0:00:26]} Bb2 {[%emt 0:00:52]} 40. e6 {[%emt 0:00:00]} fxe6 {
[%emt 0:00:00]} 41. Bxe6 {[%emt 0:00:11]} Kf6 {[%emt 0:00:28]} 42. Bd7 {
[%emt 0:02:18]} Ke5 {[%emt 0:00:33]} 43. Kf3 {[%emt 0:00:16]} Bc1 {[%emt 0:00:
31]} 1/2-1/2